[Event "TUR-ch U13-18 Open 2023"]
[Site "Antalya"]
[Date "2023.01.24"]
[Round "5"]
[White "Uysal, Ugur"]
[Black "Yildirim, Ibrahim Halil"]
[Result "1/2-1/2"]
[ECO "D19"]
[WhiteElo "1760"]
[BlackElo "2124"]
[Annotator "TA"]
[PlyCount "45"]
[EventDate "2023.01.17"]
[EventType "swiss"]
[EventCountry "TUR"]
[SourceTitle "playchess.com"]
[Source "ChessBase"]
[SourceQuality "1"]
[TimeControl "5400+30"]

{[%evp 23,45,17,40,31,39,33,34,33,33,33,35,37,31,22,45,31,39,31,35,36,38,21,23,15]} 1. Nf3 {[%emt 0:02:00]} d5 {[%emt 0:01:00]} 2. d4 {[%emt 0:00:30]} Nf6 {[%emt 0:00:30]} 3. c4 {[%emt 0:00:30]} c6 {[%emt 0:00:30]} 4. Nc3 {[%emt 0:00:00]} dxc4 {[%emt 0:00:00]} 5. a4 {[%emt 0:00:00]} Bf5 {[%emt 0:00:00]} 6. e3 {[%emt 0:00:30]} e6 {[%emt 0:00:30]} 7. Bxc4 {[%emt 0:00:30]} Bb4 {[%emt 0:00:30]} 8. O-O {[%emt 0:00:30]} O-O {[%emt 0:00:30]} 9. Qe2 {[%emt 0:00:00]} Bg6 {[%emt 0:01:30]} 10. Ne5 {[%emt 0:00:00]} Nbd7 {[%emt 0:00:30]} 11. Nxg6 {[%emt 0:00:30]} hxg6 {[%emt 0:00:00]} 12. Rd1 {[%emt 0:00:00]} Qe7 {[%emt 0:01:00] 12...Qc7 is the modern continuation.} 13. e4 {[%emt 0:00:00] D19: Slav Defence: 5 a4 Bf5 6 e3: Main line with 9 Qe2.} e5 {[%emt 0:01:30]} 14. d5 {[%emt 0:00:30]} Nb6 {[%emt 0:00:30]} 15. Bb3 {[%emt 0:00:30] White is slightly better.} cxd5 {[%emt 0:00:00]} 16. a5 {[%emt 0:06:30]} d4 {[%emt 0:02:00]} 17. axb6 {[%emt 0:00:30] [#] aiming for Nd5.} dxc3 {[%emt 0:00:00]} 18. bxc3 {[%emt 0:03:30]} ({Reject} 18. Rxa7 cxb2 19. Bxb2 Bc5 $11) 18... Bc5 {[%emt 0:02:00]} 19. bxa7 {[%emt 0:01:30]} Rxa7 {[%emt 0:05:30] [#]} 20. Bg5 $146 {[%emt 0:03:30]} ({Predecessor:} 20. Rxa7 Bxa7 21. h3 Bc5 22. Bg5 b6 23. g3 Rd8 24. Ra1 Qb7 25. Bxf6 gxf6 26. Bd5 {½-½ Peralta,F (2565)-Andriasian,Z (2615) La Roda op 44th 2017 (5)}) 20... Rxa1 {[%emt 0:11:30]} 21. Rxa1 {[%emt 0:00:30]} Qc7 {[%emt 0:00:30][%cal Oc5f2]} 22. Bxf6 {[%emt 0:00:30]} gxf6 {[%emt 0:00:30] Black is weak on the light squares} 23. Bd5 {[%emt 0:01:30] Weighted Error Value: White=0.03 (flawless) /Black=0.05 (flawless)} 1/2-1/2

[Event "TUR-ch U13-18 Open 2023"]
[Site "Antalya"]
[Date "2023.01.24"]
[Round "5"]
[White "Sevig, Mert Can"]
[Black "Kolat, Ata"]
[Result "1-0"]
[ECO "B23"]
[WhiteElo "1738"]
[BlackElo "1732"]
[Annotator "NA RC COMBH"]
[PlyCount "101"]
[EventDate "2023.01.17"]
[EventType "swiss"]
[EventCountry "TUR"]
[SourceTitle "playchess.com"]
[Source "ChessBase"]
[SourceQuality "1"]
[TimeControl "5400+30"]

1. e4 c5 2. Nc3 Nc6 3. f4 d6 4. Bb5 Bd7 5. Bxc6 Bxc6 6. Nf3 g6 7. O-O Bg7 8. d3 Nf6 9. Qe1 Qd7 10. e5 dxe5 11. fxe5 Nd5 12. Ne4 b6 13. Nfg5 O-O 14. Nxh7 Qg4 15. Nxf8 Rxf8 16. Qg3 Qxg3 17. Nxg3 Nb4 18. Rf2 Bxe5 19. a3 Nd5 20. c3 Rd8 21. Bg5 f6 22. Bd2 Nc7 23. Bf4 Bxf4 24. Rxf4 Rxd3 25. Re1 Nd5 26. Rf3 Rxf3 27. gxf3 Kf7 28. Kf2 e5 29. c4 Nf4 30. Rb1 Ne6 31. Ne4 Ke7 32. Rg1 {[%emt 1:07:30]} f5 {[%emt 0:58:30]} 33. Nc3 {[%emt 0:00:30]} Nf4 {[%emt 0:00:30]} 34. Ke3 {[%emt 0:00:30]} Kf6 {[%emt 0:00:30]} 35. h4 {[%emt 0:00:30]} Kf7 {[%emt 0:00:30]} 36. b4 {[%emt 0:00:30]} Ne6 {[%emt 0:02:30]} 37. Nd5 {[%emt 0:04:30]} Nd4 {[%emt 0:01:30]} 38. bxc5 {[%emt 0:01:30]} bxc5 {[%emt 0:00:30]} 39. Rb1 {[%emt 0:05:30]} Nc2+ {[%emt 0:00:30]} 40. Kd3 {[%emt 0:00:30]} Nd4 {[%emt 0:00:30]} 41. Rb8 {[%emt 0:02:30]} Nxf3 {[%emt 0:00:30]} 42. Rc8 {[%emt 0:00:30]} e4+ {[%emt 0:01:30]} 43. Kc3 {[%emt 0:06:30]} Nd4 {[%emt 0:01:30]} 44. Rc7+ {[%emt 0:00:30]} Ke6 {[%emt 0:00:30]} 45. Nf4+ {[%emt 0:01:30]} Kf6 {[%emt 0:00:30]} 46. Rxa7 {[%emt 0:01:14]} g5 {[%emt 0:00:30]} 47. h5 {[%emt 0:01:12]} gxf4 {[%emt 0:02:30]} 48. h6 {[%emt 0:00:30]} f3 {[%emt 0:00:00]} 49. h7 {[%emt 0:00:00]} f2 {[%emt 0:00:00]} 50. h8=Q+ {[%emt 0:00:03]} Ke6 {[%emt 0:00:30]} 51. Qh6+ {[%emt 0:00:01]} 1-0

[Event "TUR-ch U13-18 Open 2023"]
[Site "Antalya"]
[Date "2023.01.24"]
[Round "5"]
[White "Ersoz, Teoman Guney"]
[Black "Torun, Kagan"]
[Result "1/2-1/2"]
[ECO "B38"]
[WhiteElo "1691"]
[BlackElo "1442"]
[Annotator "NA RC COMBH"]
[PlyCount "55"]
[EventDate "2023.01.17"]
[EventType "swiss"]
[EventCountry "TUR"]
[SourceTitle "playchess.com"]
[Source "ChessBase"]
[SourceQuality "1"]
[TimeControl "5400+30"]

1. e4 {[%emt 0:01:00]} c5 {[%emt 0:01:00]} 2. Nf3 {[%emt 0:00:30]} g6 {[%emt 0:00:30]} 3. d4 {[%emt 0:00:30]} cxd4 {[%emt 0:00:00]} 4. Nxd4 {[%emt 0:00:00]} Bg7 {[%emt 0:00:00]} 5. c4 {[%emt 0:00:00]} Nc6 {[%emt 0:00:30]} 6. Be3 {[%emt 0:00:00]} Nf6 {[%emt 0:00:30]} 7. Nc3 {[%emt 0:00:00]} d6 {[%emt 0:00:30]} 8. Be2 {[%emt 0:00:00]} O-O {[%emt 0:01:30]} 9. O-O {[%emt 0:00:00]} Bd7 {[%emt 0:03:30]} 10. h3 {[%emt 0:00:30]} Nxd4 {[%emt 0:00:30]} 11. Bxd4 {[%emt 0:00:00]} Qa5 {[%emt 0:05:30]} 12. c5 {[%emt 0:04:00]} e5 {[%emt 0:01:30]} 13. Be3 {[%emt 0:00:30]} dxc5 {[%emt 0:00:30]} 14. Bc4 {[%emt 0:00:30]} Bc6 {[%emt 0:01:30]} 15. Qf3 {[%emt 0:26:30]} Kh8 {[%emt 0:11:30]} 16. Rfd1 {[%emt 0:16:30]} b5 {[%emt 0:18:30]} 17. Bxc5 {[%emt 0:04:30]} bxc4 {[%emt 0:20:30]} 18. Bxf8 {[%emt 0:00:30]} Rxf8 {[%emt 0:00:30]} 19. Rd6 {[%emt 0:00:30]} Qb6 {[%emt 0:00:30]} 20. Rxf6 {[%emt 0:00:30]} Bxf6 {[%emt 0:00:30]} 21. Qxf6+ {[%emt 0:00:30]} Kg8 {[%emt 0:02:30]} 22. Rb1 {[%emt 0:37:24]} Re8 {[%emt 0:02:30]} 23. Qd6 {[%emt 0:00:51]} Re6 {[%emt 0:03:30]} 24. Qd2 {[%emt 0:00:16]} Qd4 {[%emt 0:05:55]} 25. Qe2 {[%emt 0:00:14]} Qc5 {[%emt 0:06:32]} 26. Rd1 {[%emt 0:01:02]} Kg7 {[%emt 0:02:06]} 27. Nd5 {[%emt 0:04:10]} Rd6 {[%emt 0:00:53]} 28. Rc1 {[%emt 0:01:15]} 1/2-1/2

[Event "TUR-ch U13-18 Open 2023"]
[Site "Antalya"]
[Date "2023.01.24"]
[Round "5"]
[White "Acar, Erdogan"]
[Black "Yildiz, Tunahan"]
[Result "0-1"]
[ECO "B80"]
[WhiteElo "1631"]
[BlackElo "1792"]
[Annotator "NA COMBH"]
[PlyCount "104"]
[EventDate "2023.01.17"]
[EventType "swiss"]
[EventCountry "TUR"]
[SourceTitle "playchess.com"]
[Source "ChessBase"]
[SourceQuality "1"]
[TimeControl "5400+30"]

1. e4 c5 2. Nf3 e6 3. d4 cxd4 4. Nxd4 Nf6 5. Nc3 d6 6. g3 a6 7. Bg2 Be7 8. O-O O-O 9. f4 Qc7 10. g4 Nc6 11. Nb3 b5 12. a3 Nd7 13. g5 Re8 14. Be3 Bf8 15. Rf3 Bb7 16. Rh3 g6 17. Qe1 Bg7 18. Qh4 Nf8 19. Rf1 b4 20. Nd1 bxa3 21. bxa3 Qe7 22. Nf2 f5 23. gxf6 Qxf6 24. Qg3 Qb2 25. Ng4 h5 26. Bc1 Qxc2 27. Ne3 Qxb3 28. f5 Nd4 29. Qg5 exf5 30. exf5 Ne2+ 31. Kh1 Bxg2+ 32. Qxg2 Nxc1 33. Nd5 Qb2 34. f6 Qxg2+ 35. Kxg2 Re2+ 36. Kf3 Bh6 37. Rxc1 Bxc1 38. Kxe2 Re8+ 39. Kd1 Bg5 40. Rg3 Re5 41. Ne7+ Kf7 42. Nc8 Rd5+ 43. Ke2 Bxf6 44. Rb3 Ke6 45. Rb7 Rb5 46. Ra7 Rc5 47. Nb6 Rc6 48. Na4 Nd7 49. Ra8 Nc5 50. Nxc5+ dxc5 51. Kd3 c4+ 52. Kc2 Rb6 0-1

[Event "TUR-ch U13-18 Open 2023"]
[Site "Antalya"]
[Date "2023.01.24"]
[Round "5"]
[White "Tezcan, Alper"]
[Black "Demirtas, Alper"]
[Result "1/2-1/2"]
[ECO "C10"]
[WhiteElo "1568"]
[BlackElo "1990"]
[Annotator "TA"]
[PlyCount "85"]
[EventDate "2023.01.17"]
[EventType "swiss"]
[EventCountry "TUR"]
[SourceTitle "playchess.com"]
[Source "ChessBase"]
[SourceQuality "1"]
[TimeControl "5400+30"]

{[%evp 20,85,29,22,37,23,29,23,13,0,0,0,0,-31,-27,-25,-8,-8,-15,-23,-21,-54,-52,-103,-10,-116,-116,-116,-116,-116,-111,-109,-109,-100,-107,-117,-64,-71,-77,-78,-68,-77,-70,-91,-74,-93,-78,-178,-132,-216,-201,-207,-206,-209,-212,-223,-78,-62,-76,-60,-71,-71,-64,-64,-71,-67,-49,-43]} 1. e4 {[%emt 0:04:00]} e6 {[%emt 0:01:00]} 2. d4 {[%emt 0:00:30]} d5 {[%emt 0:00:00]} 3. Nd2 {[%emt 0:00:30]} dxe4 {[%emt 0:00:00]} 4. Nxe4 {[%emt 0:00:30]} Nd7 {[%emt 0:00:30]} 5. Nf3 {[%emt 0:00:30]} Ngf6 {[%emt 0:00:30]} 6. Nxf6+ {[%emt 0:00:30]} Nxf6 {[%emt 0:00:00]} 7. Bd3 {[%emt 0:00:30]} Be7 {[%emt 0:00:00]} 8. O-O {[%emt 0:00:30]} O-O {[%emt 0:00:00]} 9. c3 {[%emt 0:02:30]} b6 {[%emt 0:00:00]} 10. Qe2 {[%emt 0:00:30]} Bb7 {[%emt 0:02:30]} 11. Bf4 {[%emt 0:02:30]} Rc8 {[%emt 0:07:30] C10: French with 3 Nc3: Unusual Black 3rd moves and 3...dxe4.} 12. Rad1 {[%emt 0:01:30]} Qd5 {[%emt 0:01:30]} 13. a3 {[%emt 0:02:30]} Qh5 {[%emt 0:00:30] [#] White has an edge.} 14. Ne5 $146 {[%emt 0:01:30]} ({Predecessor:} 14. Ba6 Bxa6 15. Qxa6 Qa5 16. Qxa5 bxa5 17. Rfe1 Nd5 18. Bc1 Bf6 19. Nd2 a4 20. Nc4 {0-1 Feher,A (2348)-Balog,I (2513) HUN-chT 1011 2010 (9)}) 14... Qxe2 {[%emt 0:00:30]} 15. Bxe2 {[%emt 0:00:00]} Rfd8 {[%emt 0:02:30]} 16. Bf3 {[%emt 0:08:00]} Bxf3 {[%emt 0:01:30]} 17. Nxf3 {[%emt 0:00:30]} c5 {[%emt 0:02:30]} 18. dxc5 {[%emt 0:02:30]} Bxc5 {[%emt 0:01:30]} 19. Ne5 {[%emt 0:00:30]} Nd5 {[%emt 0:00:30][%cal Bf6d5,Bd5e3,Be3c4,Bc4b2][%mdl 32]} 20. Bg3 {[%emt 0:00:30]} f6 {[%emt 0:00:30]} 21. Nd3 {[%emt 0:00:30]} (21. Nf3 $15) 21... e5 {[%emt 0:04:30]} (21... Bxa3 $1 $17 {[%cal Oe6e5]} 22. Rfe1 (22. bxa3 $2 {is the wrong capture.} Nxc3 23. Rd2 Rd4 $17) 22... e5) 22. Rd2 {[%emt 0:17:30] [#]} (22. Nxc5 $11 bxc5 23. f4) 22... Ne3 $1 $17 {[%emt 0:05:30]} 23. Re1 {[%emt 0:03:30] [#]} Nc4 {[%emt 0:01:30]} 24. Rdd1 {[%emt 0:01:30]} Rd5 {[%emt 0:02:30] ...Rcd8 is the strong threat.} 25. Nxc5 {[%emt 0:08:30]} Rcxc5 {[%emt 0:00:30]} 26. b4 {[%emt 0:01:30]} Rxd1 {[%emt 0:00:30]} 27. Rxd1 {[%emt 0:00:30][%mdl 4096] Endgame KRB-KRN} Rc7 {[%emt 0:00:30]} (27... Rc8 $17 28. Ra1 Nb2) 28. a4 {[%emt 0:00:30]} Nb2 {[%emt 0:17:30][%csl LRa4,LRc3,LRd1]} 29. Rd8+ {[%emt 0:00:30]} Kf7 {[%emt 0:00:30]} 30. a5 {[%emt 0:00:00]} Rxc3 {[%emt 0:00:30] ( -> ...Rc1+)} 31. h4 {[%emt 0:00:00]} Rc7 {[%emt 0:00:30] Repels Rd7+} 32. f3 {[%emt 0:05:30]} Nc4 {[%emt 0:06:30]} 33. a6 {[%emt 0:03:30]} (33. axb6 $17 {was necessary.} Nxb6 34. Bf2) 33... Ke7 {[%emt 0:00:30]} ({Black should try} 33... Ne3 $19 34. Be1 Ke7) 34. Rb8 {[%emt 0:00:30]} (34. Rh8 $17) 34... Kd6 $19 {[%emt 0:02:30]} 35. f4 {[%emt 0:01:30]} Kc6 {[%emt 0:02:30]} 36. fxe5 {[%emt 0:00:30]} fxe5 {[%emt 0:02:30]} ({Worse is} 36... Nxe5 37. Bxe5 fxe5 38. Kf2 $15) 37. Kf2 {[%emt 0:02:30]} Re7 {[%emt 0:02:30]} (37... Rf7+ $19 {is more deadly.} 38. Ke2 Kb5) 38. b5+ $17 {[%emt 0:03:30]} Kd7 {[%emt 0:01:30] Hoping for ...Nd6.} 39. Rb7+ {[%emt 0:02:30]} Ke6 {[%emt 0:00:30]} 40. Ke2 {[%emt 0:00:30]} g6 {[%emt 0:03:30]} 41. Rxe7+ {[%emt 0:02:30]} Kxe7 {[%emt 0:00:30]} 42. Kd3 {[%emt 0:00:30]} Nd6 {[%emt 0:00:30]} 43. Bxe5 {[%emt 0:00:00] Weighted Error Value: White=0.18 (very precise) /Black=0.13 (very precise)} 1/2-1/2

[Event "TUR-ch U13-18 Open 2023"]
[Site "Antalya"]
[Date "2023.01.24"]
[Round "5"]
[White "Ogur, Nidal Hevi"]
[Black "Sinay, Ahmet"]
[Result "1-0"]
[ECO "B63"]
[WhiteElo "1511"]
[BlackElo "1612"]
[Annotator "NA RC COMBH"]
[PlyCount "51"]
[EventDate "2023.01.17"]
[EventType "swiss"]
[EventCountry "TUR"]
[SourceTitle "playchess.com"]
[Source "ChessBase"]
[SourceQuality "1"]
[TimeControl "5400+30"]

1. e4 {[%emt 0:01:00]} c5 {[%emt 0:01:00]} 2. Nf3 {[%emt 0:00:30]} d6 {[%emt 0:00:30]} 3. d4 {[%emt 0:00:30]} cxd4 {[%emt 0:00:30]} 4. Nxd4 {[%emt 0:00:30]} Nf6 {[%emt 0:00:30]} 5. Nc3 {[%emt 0:00:30]} Nc6 {[%emt 0:00:00]} 6. Bg5 {[%emt 0:00:00]} e6 {[%emt 0:00:00]} 7. Qd2 {[%emt 0:00:00]} h6 {[%emt 0:00:00]} 8. Bxf6 {[%emt 0:02:30]} Qxf6 {[%emt 0:00:00]} 9. Ndb5 {[%emt 0:02:30]} Qd8 {[%emt 0:11:30]} 10. O-O-O {[%emt 0:00:30]} Be7 {[%emt 0:03:30]} 11. Nxd6+ {[%emt 0:04:30]} Kf8 {[%emt 0:01:30]} 12. Bb5 {[%emt 0:06:30]} e5 {[%emt 0:05:30]} 13. Kb1 {[%emt 0:05:30]} Nd4 {[%emt 0:26:30]} 14. Nc4 {[%emt 0:26:30]} f6 {[%emt 0:11:30]} 15. Ba4 {[%emt 0:01:30]} Be6 {[%emt 0:06:30]} 16. Ne3 {[%emt 0:01:30]} Qa5 {[%emt 0:14:07]} 17. Bb3 {[%emt 0:01:30]} Bxb3 {[%emt 0:03:38]} 18. axb3 {[%emt 0:00:30]} Bb4 {[%emt 0:00:24]} 19. Qd3 {[%emt 0:05:30]} Rc8 {[%emt 0:04:20]} 20. Ncd5 {[%emt 0:01:30]} Bc5 {[%emt 0:04:18]} 21. b4 {[%emt 0:01:30]} Bxb4 {[%emt 0:00:30]} 22. Nxb4 {[%emt 0:00:30]} Qxb4 {[%emt 0:00:30]} 23. c3 {[%emt 0:00:30]} Qa4 {[%emt 0:00:30]} 24. cxd4 {[%emt 0:00:30]} Kf7 {[%emt 0:00:22]} 25. Qa3 {[%emt 0:05:30]} Qb5 {[%emt 0:00:57]} 26. Nf5 {[%emt 0:00:30]} 1-0

[Event "TUR-ch U13-18 Open 2023"]
[Site "Antalya"]
[Date "2023.01.25"]
[Round "6"]
[White "Taspinar, Yanki"]
[Black "Tarhan, Adar"]
[Result "1/2-1/2"]
[ECO "C28"]
[WhiteElo "2275"]
[BlackElo "2321"]
[Annotator "TA"]
[PlyCount "41"]
[EventDate "2023.01.17"]
[EventType "swiss"]
[EventCountry "TUR"]
[SourceTitle "playchess.com"]
[Source "ChessBase"]
[SourceQuality "1"]
[TimeControl "5400+30"]

{[%evp 15,41,0,0,0,0,0,0,0,40,54,142,111,358,347,354,-18,-13,-13,-29,-18,-25,-20,-13,-33,-21,-29,-53,-55]} 1. e4 {[%emt 0:05:00]} e5 {[%emt 0:01:00]} 2. Nc3 {[%emt 0:00:30]} Nc6 {[%emt 0:00:30]} 3. Bc4 {[%emt 0:00:00]} Nf6 {[%emt 0:01:30]} 4. d3 {[%emt 0:00:00]} Bb4 {[%emt 0:05:30]} 5. Nge2 {[%emt 0:00:30]} d5 {[%emt 0:00:30]} 6. exd5 {[%emt 0:00:30]} Nxd5 {[%emt 0:00:30]} 7. O-O {[%emt 0:00:00]} Be6 {[%emt 0:02:30]} 8. Bxd5 {[%emt 0:00:00]} Bxd5 {[%emt 0:00:30]} 9. f4 {[%emt 0:00:00] C28: Vienna Game: 2...Nf6 3 Bc4 Nc6.} O-O {[%emt 0:01:30] 9...f6 is the modern continuation.} 10. Nxd5 {[%emt 0:00:00]} Qxd5 {[%emt 0:00:30]} 11. f5 {[%emt 0:00:00] [#] The position is equal.} Nd4 $146 {[%emt 0:18:30]} ({Predecessor:} 11... f6 12. Ng3 Rf7 13. Ne4 Bf8 14. Be3 Nd4 15. c3 Nc6 16. Qe2 Rd8 17. Rad1 Qxa2 {1-0 Petrov,N (2553)-Dragomarezkij,E (2297) RUS-ch Rapid 2022 (7)}) 12. Ng3 {[%emt 0:33:00]} Qc5 {[%emt 0:00:00]} (12... Bc5 $14 13. Kh1 f6) 13. Rf2 {[%emt 0:00:30] Black must now prevent c3.} Be1 {[%emt 0:00:00]} 14. Qxe1 $18 {[%emt 0:00:30]} Nxc2 {[%emt 0:00:00]} 15. Qc3 {[%emt 0:02:30]} ({But not} 15. Ne4 Qb4 16. Qxb4 (16. Rxc2 $2 Qxe1#) 16... Nxb4 $18) ({White should play} 15. Qd2 $18 Nxa1 16. f6) 15... Qxc3 $11 {[%emt 0:00:00]} 16. bxc3 {[%emt 0:00:30]} Nxa1 {[%emt 0:00:30]} 17. Bb2 {[%emt 0:00:30] [#]} Rfd8 $1 {[%emt 0:00:00][%cal Od8d3] ...Rxd3! is the strong threat.} 18. Rd2 {[%emt 0:00:00] [#]} Nc2 $1 {[%emt 0:00:00][%mdl 64] Hoping for ...Ne3. Deflection} 19. Kf2 {[%emt 0:03:00][%cal Og3e4] [#] Inhibits Ne3.} Rd7 $1 {[%emt 0:22:30][%cal Oa8d8]} 20. Rxc2 {[%emt 0:22:30]} (20. Ke2 Rad8) 20... Rxd3 {[%emt 0:00:00]} 21. Bc1 {[%emt 0:00:30] An exciting game.   Weighted Error Value: White=0.52/Black=0.42} 1/2-1/2

[Event "TUR-ch U13-18 Open 2023"]
[Site "Antalya"]
[Date "2023.01.25"]
[Round "6"]
[White "Ozen, Metehan"]
[Black "Anacak, Hasan Gunes"]
[Result "1/2-1/2"]
[ECO "B69"]
[WhiteElo "2137"]
[BlackElo "1898"]
[Annotator "TA"]
[PlyCount "49"]
[EventDate "2023.01.17"]
[EventType "swiss"]
[EventCountry "TUR"]
[SourceTitle "playchess.com"]
[Source "ChessBase"]
[SourceQuality "1"]
[TimeControl "5400+30"]

{[%evp 23,34,57,57,32,29,24,43,29,33,16,35,34,51]} 1. e4 {[%emt 0:01:00]} c5 {[%emt 0:05:00]} 2. Nf3 {[%emt 0:00:30]} d6 {[%emt 0:00:30]} 3. d4 {[%emt 0:01:30]} cxd4 {[%emt 0:00:00]} 4. Nxd4 {[%emt 0:01:30]} Nf6 {[%emt 0:00:00]} 5. Nc3 {[%emt 0:00:30]} Nc6 {[%emt 0:00:00]} 6. Bg5 {[%emt 0:03:30]} e6 {[%emt 0:03:00]} 7. Qd2 {[%emt 0:03:30]} a6 {[%emt 0:00:30]} 8. O-O-O {[%emt 0:01:30]} Bd7 {[%emt 0:00:30]} 9. f4 {[%emt 0:09:30]} Be7 {[%emt 0:00:00]} 10. Nf3 {[%emt 0:00:30]} b5 {[%emt 0:00:00]} 11. Bxf6 {[%emt 0:01:30]} gxf6 {[%emt 0:00:30]} 12. f5 {[%emt 0:00:00]} Qb6 {[%emt 0:00:00]} 13. Qh6 {[%emt 0:01:00] B69: Sicilian: Richter-Rauzer: 7...a6 8 0-0-0 Bd7 9 f4 Be7 10 Nf3 b5 11 Bxf6.} O-O-O {[%emt 0:00:00]} 14. Qh5 {[%emt 0:00:30]} Rhf8 {[%emt 0:00:30]} 15. Kb1 {[%emt 0:00:30]} Kb8 {[%emt 0:01:30]} 16. Bd3 {[%emt 0:00:30]} Rc8 {[%emt 0:26:30]} 17. Rhe1 {[%emt 0:14:30]} Qc5 {[%emt 0:03:30] [#] White took control after the opening.   Weighted Error Value: White=0.05 (flawless) /Black=0.04 (flawless)} {Predecessor:} 18. Ne2 $146 a5 19. Nc3 Ne5 20. fxe6 Nxd3 21. Qxc5 Rxc5 22. cxd3 fxe6 23. d4 Rc4 24. e5 fxe5 25. dxe5 {1-0 Turgut,A (2275)-Matta,N (2231) Charlotte CCCSA Summer IM-C 2021 (8)} 1/2-1/2

[Event "TUR-ch U13-18 Open 2023"]
[Site "Antalya"]
[Date "2023.01.25"]
[Round "6"]
[White "Yildirim, Ibrahim Halil"]
[Black "Danaci, Ege"]
[Result "1-0"]
[ECO "B10"]
[WhiteElo "2124"]
[BlackElo "2088"]
[Annotator "TA"]
[PlyCount "70"]
[EventDate "2023.01.17"]
[EventType "swiss"]
[EventCountry "TUR"]
[SourceTitle "playchess.com"]
[Source "ChessBase"]
[SourceQuality "1"]
[TimeControl "5400+30"]

{[%evp 11,70,5,12,0,5,2,29,-5,-2,-21,12,-4,0,7,0,0,0,0,3,0,0,0,0,0,0,0,0,0,0,0,0,0,0,-1,6,0,23,4,20,21,17,10,17,0,20,25,80,73,70,51,58,-19,6,-14,151,151,160,164,155,0,152]} 1. e4 {[%emt 0:01:00]} c6 {[%emt 0:01:00]} 2. c4 {[%emt 0:05:30]} d5 {[%emt 0:02:30]} 3. exd5 {[%emt 0:00:30]} cxd5 {[%emt 0:00:30]} 4. cxd5 {[%emt 0:00:30]} Nf6 {[%emt 0:04:30]} 5. Nc3 {[%emt 0:03:30]} Nxd5 {[%emt 0:01:30]} 6. Nf3 {[%emt 0:00:30]} Nc6 {[%emt 0:03:30] 6...Nc6 is better than 6...e6.} 7. Bb5 {[%emt 0:02:30] B10: Caro-Kann: 2 d3 and 2 c4.} e6 {[%emt 0:07:30]} 8. O-O {[%emt 0:21:30]} a6 {[%emt 0:05:30]} 9. Ba4 {[%emt 0:01:30] White has an edge.} b5 {[%emt 0:08:30]} 10. Bb3 {[%emt 0:05:30]} Be7 {[%emt 0:00:30]} 11. d4 {[%emt 0:00:30]} O-O {[%emt 0:02:30] [#]} 12. Nxd5 $146 {[%emt 0:04:30]} ({Predecessor:} 12. Re1 Bf6 13. Ne4 Be7 14. a4 b4 15. Qd3 f5 16. Nc5 Qd6 17. Bc4 Nd8 18. Qb3 {½-½ Leopold,C (1982)-Schindler,G (1876) Regionalliga NO 1011 2010 (8.5)}) 12... exd5 {[%emt 0:00:30]} 13. Ne5 {[%emt 0:00:30]} Nxe5 {[%emt 0:12:30]} 14. dxe5 {[%emt 0:00:30]} Be6 {[%emt 0:00:30]} 15. Be3 {[%emt 0:05:30]} Rc8 {[%emt 0:05:30]} 16. Qd2 {[%emt 0:05:30]} a5 {[%emt 0:10:30][%cal Ba6a5,Ba5a4][%mdl 32]} 17. Rfd1 {[%emt 0:20:50][%cal Rb3d5]} Qc7 {[%emt 0:14:11]} 18. Bd4 {[%emt 0:07:44]} a4 {[%emt 0:00:30]} 19. Rac1 {[%emt 0:00:30]} Qd7 {[%emt 0:00:30] [#] aiming for ...Rxc1.} 20. Bc2 {[%emt 0:00:00]} Bf5 {[%emt 0:06:17]} (20... Bg4 $5 {[%cal Rg4d1]}) 21. Bd3 {[%emt 0:00:39]} h6 {[%emt 0:02:17]} 22. h3 {[%emt 0:01:11]} Rfe8 {[%emt 0:01:37]} 23. Qe2 {[%emt 0:02:18]} Bxd3 {[%emt 0:02:26]} 24. Qxd3 {[%emt 0:00:30]} Bg5 {[%emt 0:00:30]} 25. Rxc8 {[%emt 0:00:30]} Rxc8 {[%emt 0:00:30]} 26. Bc3 {[%emt 0:00:30][%cal Bd4c3,Bc3a5,Ba5b4,Bb4d6][%mdl 32]} Rd8 {[%emt 0:00:30]} 27. Ba5 {[%emt 0:00:30]} Ra8 {[%emt 0:00:30]} 28. Bb4 {[%emt 0:00:45]} (28. Qxd5 $2 {too greedy.} Qxd5 29. Rxd5 Rxa5 $19) 28... Rd8 {[%emt 0:06:27]} (28... Rc8 $1 $11 {remains equal.}) 29. Bd6 $16 {[%emt 0:00:14] White is more active.} Rc8 {[%emt 0:00:27]} 30. Qxd5 {[%emt 0:00:29]} Rc2 {[%emt 0:00:27]} 31. Qd4 {[%emt 0:06:38]} (31. Qa8+ $14 Qd8 32. Qe4 Rxb2 33. Rd5) 31... Qe6 {[%emt 0:00:15]} 32. Ba3 {[%emt 0:02:00]} Qxa2 $2 {[%emt 0:00:51]} ({Better is} 32... Qc4 $11) 33. h4 {[%emt 0:01:56]} Rc4 {[%emt 0:00:30]} 34. Qd5 {[%emt 0:00:30]} Bxh4 {[%emt 0:00:30] [#]} 35. Qxb5 {[%emt 0:00:30]} (35. e6 $1 $16 {[%cal Re6f7]} fxe6 36. Qxe6+ Kh8 37. Re1 Bxf2+ {[%mdl 64] Decoy} 38. Kxf2 Rf4+ 39. Kg3 Qxe6 40. Rxe6) 35... Qb3 $2 {[%emt 0:00:28] Weighted Error Value: White=0.19 (very precise) /Black=0.19 (very precise)} (35... Re4 $11) 1-0